bitfinex/quotes_ETHUSD_20240716
["timestamp","ask_amount","ask_price","bid_price","bid_amount"]
[1721115228561,6.273377,3403.4,3402.4,2.93909]
[1721115228763,6.273377,3403.4,3402.5,3.0]
[1721115228764,2.93842,3403.2,3402.5,3.0]
[1721115228997,0.14736342,3403.1,3402.5,3.0]
[1721115229160,0.14736342,3403.0,3402.8,2.93874]
[1721115229360,6.273377,3403.4,3402.8,2.93874]
[1721115229361,0.14736342,3402.9,3402.8,2.93874]
[1721115229584,0.14742477,3403.3,3403.2,2.93841]
[1721115229784,0.14742699,3403.3,3403.2,5.87682]
[1721115229983,0.14742699,3403.3,3403.2,8.87682]
[1721115230459,0.14742699,3403.3,3403.2,9.42682]
[1721115230661,12.3,3403.8,3403.7,2.93797]
[1721115230859,12.3,3403.8,3403.6,2.93802]
[1721115230860,6.273377,3404.4,3403.6,2.93802]
[1721115231104,6.273377,3404.4,3403.3,2.93823]
[1721115231105,8.6678167,3404.4,3403.3,2.93823]
[1721115231275,8.6678167,3404.4,3403.4,3.0]
[1721115231599,8.6678167,3404.4,3403.4,2.9382]
[1721115231600,2.93747,3404.3,3403.4,2.9382]
[1721115231896,2.93747,3404.3,3403.3,3.0]
[1721115232103,2.93758,3404.2,3403.3,3.0]
[1721115232396,1.45428667,3404.1,3403.3,3.0]
[1721115232716,8.6678167,3404.4,3403.6,2.93798]
[1721115232717,6.273377,3404.4,3403.6,2.93798]
[1721115232862,6.273377,3404.4,3403.8,2.93789]
[1721115233065,6.273377,3404.4,3403.6,2.93798]
[1721115233066,6.273377,3404.4,3403.9,2.9378]
[1721115234004,6.273377,3404.4,3404.1,2.93756]
[1721115234805,6.273377,3404.4,3404.2,2.93754]
[1721115235706,6.273377,3404.4,3403.9,2.9378]
[1721115235913,6.273377,3404.4,3404.0,5.9377]
[1721115236114,6.273377,3404.4,3404.1,2.93761]
[1721115236320,6.273377,3404.8,3404.1,2.93761]
[1721115236474,6.273377,3404.8,3404.0,3.0]
[1721115236674,6.273377,3404.8,3403.8,2.93788]
[1721115236675,7.4254237,3404.8,3403.9,3.0]
[1721115236889,7.4254237,3404.8,3403.6,3.0]
[1721115237089,7.4254237,3404.8,3403.4,2.93821]
[1721115237090,2.93729,3404.5,3403.4,2.93821]
[1721115237303,7.4254237,3404.8,3403.5,3.0]
[1721115237526,0.74254237,3404.7,3403.8,2.93782]
[1721115237717,6.273377,3404.8,3404.0,2.93764]
[1721115238515,6.273377,3404.8,3403.1,3.102]
[1721115238516,2.93711,3404.7,3404.1,3.0]
[1721115238738,2.93711,3404.7,3403.8,3.0]
[1721115239281,2.93711,3404.7,3403.8,2.93788]
[1721115239484,4.1518637,3404.7,3403.9,3.0]
[1721115239703,2.93744,3404.4,3403.6,3.0]
[1721115239906,2.93744,3404.4,3403.3,2.93831]
[1721115240115,2.93746,3404.3,3403.4,5.93823]
[1721115240517,2.93733,3404.5,3403.5,2.93814]
[1721115240717,2.93733,3404.5,3403.4,3.0]
[1721115240718,1.33626607,3404.5,3403.6,5.93804]
[1721115240929,2.93721,3404.6,3403.7,2.93795]
[1721115241096,2.93721,3404.6,3403.7,5.93795]
[1721115241311,6.273377,3404.8,3404.0,2.53287388]
[1721115241600,6.273377,3404.8,3403.0,9.4703]
[1721115241601,6.273377,3404.8,3404.1,5.93762]
[1721115242404,6.273377,3404.8,3404.2,2.93753]
[1721115242597,6.273377,3404.8,3404.5,2.93728]
[1721115242995,6.273377,3404.8,3404.6,3.0]
[1721115243228,6.273377,3404.8,3404.4,3.0]
[1721115243536,6.273377,3404.8,3404.3,2.93745]
[1721115243701,6.273377,3404.8,3404.4,3.0]
[1721115243892,6.273377,3404.8,3404.1,5.93762]
[1721115243893,0.6273377,3404.7,3404.1,5.93762]
[1721115244092,0.6273377,3404.7,3404.1,3.0]
[1721115244321,2.93727,3404.6,3403.8,2.93788]
[1721115244499,2.93727,3404.6,3403.9,3.0]
[1721115244714,2.8882377,3404.7,3403.5,2.93813]
[1721115244715,2.93748,3404.3,3403.5,2.93813]
[1721115244920,0.293748,3404.2,3403.3,2.93829]
[1721115245117,0.293748,3404.2,3403.3,2.9383]
[1721115245118,3.231358,3404.2,3403.3,2.9383]
[1721115245427,3.231358,3404.2,3403.1,2.93845]
[1721115245428,0.293748,3404.2,3403.1,2.93845]
[1721115245636,2.93772,3404.0,3403.2,2.93839]
[1721115246282,2.3731,3404.1,3402.6,2.93892]
[1721115246438,2.3731,3404.1,3402.4,2.93908]
[1721115246439,2.93825,3403.4,3402.4,2.93908]
[1721115246752,5.31145,3403.3,3402.4,2.93908]
[1721115247050,2.93851,3403.1,3402.2,2.93926]
[1721115247252,5.31145,3403.3,3401.6,2.93977]
[1721115247253,2.93894,3402.6,3401.6,2.93977]
[1721115247561,2.93894,3402.6,3401.4,7.02187]
[1721115247850,2.93928,3402.2,3401.0,2.94031]
[1721115248056,2.93928,3402.2,3400.2,9.29159]
[1721115248057,2.93965,3401.8,3400.6,0.03577116]
[1721115248354,2.93965,3401.8,3400.2,4.082]
[1721115248355,9.213027,3401.8,3400.3,2.94084]
[1721115248554,9.213027,3401.8,3400.4,0.03577327]
[1721115248852,0.9213027,3401.7,3400.5,0.70586133]
[1721115249052,0.9213027,3401.7,3400.6,0.03577116]
[1721115249230,2.93989,3401.5,3400.6,2.97640011]
[1721115249442,2.93989,3401.5,3400.6,0.03577011]
[1721115249649,2.93989,3401.5,3400.4,0.03577011]
[1721115249853,3.8610027,3401.7,3400.4,0.03577011]
[1721115249854,2.9397,3401.7,3400.7,2.9405]
[1721115250171,6.273377,3401.8,3401.1,2.94014]
[1721115250321,6.273377,3401.8,3400.8,2.94041]
[1721115250655,6.273377,3401.8,3400.5,0.29766101]
[1721115250656,6.273377,3401.8,3400.9,3.0]
[1721115250872,0.9212917,3401.7,3400.5,0.29766101]
[1721115251170,0.9212917,3401.7,3400.5,3.23839101]
[1721115251351,0.9212917,3401.7,3399.1,3.24928599]
[1721115251352,2.94014,3401.2,3399.9,2.94118]
[1721115251523,2.94014,3401.2,3400.0,2.94113]
[1721115251524,2.9404,3400.9,3400.0,2.94113]
[1721115251722,2.94024,3401.1,3399.6,4.082]
[1721115251962,4.1556157,3401.1,3400.1,2.94101]
[1721115252155,1.2153757,3401.1,3400.2,2.94095]
[1721115252461,1.2153757,3401.1,3400.3,2.9409]
[1721115252661,1.2153757,3401.1,3400.4,3.0]
[1721115252868,1.2153757,3401.1,3400.0,2.94114]
[1721115253019,9.213517,3401.2,3399.1,6.5027]
[1721115253020,2.94041,3400.9,3399.1,6.5027]
[1721115253222,6.273377,3400.7,3399.5,2.94159]
[1721115253420,2.94073,3400.6,3399.6,2.94151]
[1721115253625,6.273377,3400.7,3399.6,2.94151]
[1721115253626,2.94074,3400.5,3399.6,2.94151]
[1721115254270,2.94074,3400.5,3399.4,2.94168]
[1721115254455,0.9214117,3400.4,3399.8,2.94131]
[1721115255125,0.9214117,3400.4,3399.5,2.94154]
[1721115255329,0.9214117,3400.4,3399.6,3.0]
[1721115255530,0.9214117,3400.4,3399.6,5.94149]
[1721115255953,9.213947,3400.7,3399.6,3.0]
[1721115256143,6.273377,3400.7,3400.3,2.94089]
[1721115256624,6.273377,3400.7,3400.1,2.94107]
[1721115257141,6.273377,3400.7,3400.6,2.94065]
[1721115257322,6.273377,3401.3,3400.7,2.94052]
[1721115257727,6.273377,3401.3,3400.2,5.3707]
[1721115257929,6.273377,3401.3,3400.4,2.9408]
[1721115258161,6.273377,3401.3,3400.7,2.94053]
[1721115258782,6.273377,3401.6,3400.3,4.04727]
[1721115259093,6.273377,3401.6,3401.2,5.88022]
[1721115259391,18.573377,3402.0,3401.2,5.88022]
[1721115259688,18.573377,3402.0,3401.0,2.9403]
[1721115259845,2.93971,3401.7,3400.6,2.94065]
[1721115260049,2.93971,3401.7,3400.7,3.0]
[1721115260668,2.93971,3401.7,3400.7,5.94053]
[1721115260864,23.6641157,3402.0,3401.1,2.9402]
[1721115261270,2.36641157,3401.9,3401.1,2.9402]
[1721115261467,21.512857,3402.0,3401.1,2.9402]
[1721115261674,21.512897,3402.0,3401.1,2.9402]
[1721115262446,18.573377,3402.0,3401.1,2.9402]
[1721115262651,18.573377,3402.0,3401.2,2.94008]
[1721115262852,21.512827,3402.0,3401.0,2.94026]
[1721115263090,2.1512827,3401.9,3401.0,2.94026]
[1721115263251,9.212827,3402.0,3401.0,5.88052]
[1721115263453,9.212827,3402.0,3401.1,2.94022]
[1721115264751,2.93972,3401.7,3400.7,5.94054]
[1721115265189,2.93972,3401.7,3400.8,2.94047]
[1721115265384,2.93972,3401.7,3400.9,3.0]
[1721115265688,2.93962,3401.8,3400.9,5.94035]
[1721115265895,9.212827,3402.0,3400.9,6.82845]
[1721115266102,2.93973,3401.7,3400.9,3.0]
[1721115266271,2.93973,3401.7,3400.3,0.94527]
[1721115266272,2.93973,3401.7,3400.3,3.94527]
[1721115266478,6.273377,3401.6,3400.3,3.94527]
[1721115266797,6.273377,3401.6,3401.2,2.94013]
[1721115266998,9.212837,3402.0,3401.2,2.94013]
[1721115268064,6.273377,3402.0,3401.2,2.94013]
[1721115268673,6.273377,3402.0,3401.3,2.94004]
[1721115268879,6.273377,3402.0,3401.3,2.93998]
[1721115269077,6.273377,3402.0,3401.8,2.93955]
[1721115269302,6.273377,3402.0,3401.8,5.8791]
[1721115269504,6.273377,3402.0,3401.4,5.93996]
[1721115269716,6.273377,3402.0,3401.4,3.0]
[1721115269898,6.273377,3402.0,3401.5,2.93986]
[1721115270078,6.273377,3402.0,3401.7,2.93962]
[1721115270282,6.273377,3402.0,3401.8,2.93957]
[1721115270583,6.273377,3402.0,3401.7,2.93962]
[1721115270584,6.273377,3402.0,3401.9,2.93953]
[1721115270797,12.3,3402.5,3401.7,2.93962]
[1721115271150,12.3,3402.5,3401.8,2.93957]
[1721115271451,12.3,3402.5,3401.6,3.0]
[1721115271452,1.8573377,3402.4,3401.6,3.0]
[1721115271898,12.3,3402.5,3401.8,2.93961]
[1721115272428,12.3,3402.5,3402.1,2.93935]
[1721115273418,6.273377,3402.9,3402.3,2.93916]
[1721115273735,9.211787,3403.2,3402.3,2.93916]
[1721115273938,6.273377,3403.2,3402.2,3.0]
[1721115274138,6.273377,3403.2,3401.6,5.5511]
[1721115274139,6.273377,3403.2,3402.8,2.93872]
[1721115275013,6.273377,3403.6,3403.0,2.93851]
[1721115275312,2.93781,3403.9,3402.3,3.0]
[1721115275313,2.93841,3403.2,3402.3,3.0]
[1721115275507,2.93841,3403.2,3402.4,2.93903]
[1721115275707,6.273377,3403.4,3402.7,2.93883]
[1721115276182,7.1945227,3403.4,3402.5,2.93894]
[1721115276337,2.93838,3403.3,3402.6,3.0]
[1721115276539,7.1945227,3403.4,3402.8,2.93875]
[1721115276757,2.93832,3403.3,3402.6,2.93889]
[1721115276958,2.93832,3403.3,3402.5,3.0]
[1721115277137,1.30710027,3403.2,3402.5,5.93899]
[1721115277340,6.273377,3403.4,3402.5,5.93899]
[1721115277765,2.93835,3403.3,3402.5,3.0]
[1721115277964,2.93835,3403.3,3402.4,5.93909]
[1721115278168,2.93833,3403.3,3402.5,2.939]
[1721115278442,2.93833,3403.3,3402.6,3.0]
[1721115279077,4.1533077,3403.3,3402.6,3.0]
[1721115279292,2.9385,3403.1,3402.6,3.0]
[1721115279446,2.9385,3403.1,3402.4,3.0]
[1721115279641,4.1533077,3403.3,3402.4,5.93906]
[1721115280174,1.2149777,3403.3,3402.4,3.0]
[1721115280471,2.93849,3403.1,3402.4,3.0]
[1721115281081,3.98107947,3403.2,3402.0,2.93943]
[1721115281270,3.98107947,3403.2,3401.8,2.93956]
[1721115281271,2.93876,3402.8,3401.8,2.93956]
[1721115281866,2.93876,3402.8,3401.9,2.93951]
[1721115282073,0.587735,3402.7,3401.9,2.93951]
[1721115282409,0.587735,3402.7,3401.3,2.94004]
[1721115282410,2.93927,3402.2,3401.3,2.94004]
[1721115282571,2.93927,3402.2,3401.4,2.93996]
[1721115283587,9.212487,3402.4,3401.4,2.93996]
[1721115283786,2.93922,3402.3,3401.4,2.93996]
[1721115284301,10.4864022,3402.4,3401.0,2.4061]
[1721115284302,6.273377,3402.4,3401.8,2.9396]
[1721115284580,6.273377,3402.4,3401.5,2.93985]
[1721115284998,2.9392,3402.3,3401.6,3.0]
[1721115285201,6.273377,3402.4,3401.6,3.0]
[1721115285388,6.273377,3402.4,3401.6,5.93978]
[1721115285606,6.273377,3402.4,3401.7,2.93962]
[1721115285908,6.273377,3402.4,3401.6,5.93978]
[1721115286114,6.273377,3402.4,3401.6,3.0]
[1721115286320,2.93923,3402.3,3401.5,3.0]
[1721115286523,3.8604717,3402.3,3401.5,5.93987]
[1721115288323,0.9212417,3402.3,3401.5,5.93987]
[1721115288534,6.273377,3402.4,3401.5,5.93987]
[1721115288535,6.273377,3402.4,3401.5,3.0]
[1721115288754,6.273377,3402.4,3401.8,2.9396]
[1721115291707,9.212497,3402.4,3401.6,2.93978]
[1721115292040,9.212497,3402.4,3401.7,5.93969]
[1721115292237,10.54681758,3402.4,3401.7,5.93969]
[1721115292445,2.93921,3402.3,3401.7,3.0]
[1721115292740,2.93921,3402.3,3401.6,3.0]
[1721115292940,2.93927,3402.2,3401.6,3.0]
[1721115293141,2.93927,3402.2,3401.4,3.0]
[1721115294345,2.93927,3402.2,3401.5,2.93987]
[1721115294659,2.93927,3402.2,3401.6,3.0]
[1721115295408,0.60403378,3402.3,3401.6,3.0]
[1721115295605,10.54681758,3402.4,3401.6,3.0]
[1721115295606,9.81653078,3402.4,3401.6,5.93978]
[1721115295837,11.24144843,3402.4,3401.6,5.93978]
[1721115296067,6.273377,3402.4,3401.7,2.93963]
[1721115296273,6.273377,3402.4,3401.6,5.93978]
[1721115296571,6.273377,3402.4,3401.8,2.93958]
[1721115296875,6.273377,3402.4,3402.1,2.93935]
[1721115297040,0.587735,3402.7,3402.1,2.93935]
[1721115297365,1.19176878,3402.7,3402.1,2.93935]
[1721115297742,0.587735,3402.7,3402.1,2.93935]
[1721115297947,1.19176878,3402.7,3402.1,2.93935]
[1721115299077,1.73502343,3402.6,3401.9,2.9395]
[1721115299272,0.60784887,3402.5,3401.9,2.9395]
[1721115299570,1.73883852,3402.6,3401.9,2.9395]
[1721115299774,1.73883852,3402.6,3402.0,2.93941]
[1721115300564,0.60784887,3402.5,3402.0,2.93941]
[1721115300765,1.13098965,3402.6,3402.0,2.93941]
[1721115300940,1.73925943,3402.6,3402.0,2.93941]
[1721115301142,1.73926966,3402.6,3402.0,2.93941]
[1721115301345,0.60828001,3402.5,3402.0,2.93941]
[1721115301962,0.60828001,3402.3,3401.8,2.9396]
[1721115302259,0.60828001,3402.3,3401.9,2.93952]
[1721115302572,0.60828001,3402.3,3402.0,2.93944]
[1721115303168,0.60828001,3402.4,3401.6,3.0]
[1721115303372,0.60828001,3402.4,3402.2,2.93927]
[1721115303684,0.60828001,3402.5,3402.2,2.93927]
[1721115304043,0.60828001,3402.3,3402.0,2.93943]
[1721115304248,0.60904698,3402.4,3402.2,2.93927]
[1721115305075,0.60904698,3402.3,3402.2,2.93927]
[1721115305258,0.60904698,3402.4,3402.2,2.93927]
[1721115307597,0.60904698,3402.4,3402.3,2.93918]
[1721115307759,0.60904698,3402.7,3402.6,5.87784]
[1721115307972,6.273377,3402.8,3402.7,2.93884]
[1721115308358,6.273377,3402.8,3402.7,5.87768]
[1721115310187,6.273377,3402.8,3402.7,2.93884]
[1721115311063,6.273377,3402.8,3402.7,5.87768]
[1721115311263,6.273377,3402.8,3402.7,6.465448]
[1721115311760,6.273377,3402.8,3402.7,8.850348]
[1721115312295,6.273377,3402.8,3402.7,11.789188]
[1721115312594,0.60982945,3403.8,3403.6,2.93806]
[1721115312780,0.60982945,3403.9,3403.7,2.93795]
[1721115313094,0.60982945,3403.9,3403.0,2.93858]
[1721115313095,0.60982945,3403.8,3403.0,2.93858]
[1721115313298,0.60982945,3403.9,3403.7,2.93797]
[1721115313599,0.91474417,3404.1,3403.7,2.93797]
[1721115313600,0.60982945,3404.1,3403.7,2.93797]
[1721115313763,0.60982945,3404.0,3403.7,2.93797]
[1721115314302,0.60982945,3404.0,3403.1,6.232348]
[1721115314303,0.61050409,3404.2,3404.1,2.93763]
[1721115314596,1.83151229,3405.0,3404.1,2.93763]
[1721115314597,0.61050409,3404.6,3404.4,2.93737]
[1721115314778,0.61050409,3404.7,3404.4,2.93737]
[1721115314973,0.61050409,3404.6,3403.8,2.93786]
[1721115315200,0.61050409,3404.5,3404.0,2.93765]
[1721115315400,0.88523093,3404.7,3403.6,8.2037]
[1721115315609,0.91575614,3404.8,3404.3,2.93745]
[1721115315610,0.61050409,3404.8,3404.3,2.93745]
[1721115316487,0.61050409,3404.9,3404.3,2.93745]
[1721115316687,0.61050409,3404.9,3404.4,2.93737]
[1721115316862,0.61050409,3405.1,3404.6,2.93718]
[1721115317073,0.91575614,3405.3,3404.6,2.93718]
[1721115317074,0.61050409,3405.2,3404.6,2.93718]
[1721115317275,0.61050409,3405.2,3404.4,2.93736]
[1721115317276,0.61050409,3405.1,3404.4,2.93736]
[1721115317476,0.27472684,3405.2,3404.5,3.0]
[1721115317477,0.88523093,3405.2,3404.5,3.0]
[1721115317899,0.88523093,3405.2,3404.6,2.93713]
[1721115318498,0.27472684,3405.2,3404.6,2.93713]
[1721115318699,0.61050409,3405.4,3404.8,2.93702]
[1721115318871,0.91575614,3405.6,3404.9,2.93692]
[1721115318872,0.61050409,3405.6,3404.9,2.93692]
[1721115319488,2.4855,3405.8,3404.9,2.93692]
[1721115319892,0.61050409,3405.9,3405.2,2.93667]
[1721115320192,0.61050409,3406.2,3405.2,2.93667]
[1721115320400,1.02617891,3406.2,3405.2,2.93667]
[1721115320605,0.41567482,3406.2,3405.2,2.93667]
[1721115320767,0.61050409,3406.4,3404.9,3.0]
[1721115320768,2.3783,3406.5,3404.9,3.0]
[1721115320987,2.3783,3406.5,3405.8,2.93616]
[1721115321187,2.3783,3406.5,3405.9,2.93605]
[1721115321502,3.54572409,3406.9,3405.9,2.93603]
[1721115321503,2.9353,3406.8,3405.9,2.93603]
[1721115321824,2.3834,3406.9,3405.9,2.93603]
[1721115321825,2.93539,3406.7,3405.9,2.93603]
[1721115321996,0.531879,3406.6,3405.9,2.93603]
[1721115322646,0.531879,3406.6,3405.5,2.93642]
[1721115322805,2.93581,3406.3,3405.6,3.0]
[1721115322993,2.93581,3406.3,3405.5,2.9364]
[1721115323192,2.93581,3406.3,3405.6,3.0]
[1721115323506,2.93581,3406.3,3405.3,3.0]
[1721115324092,2.93581,3406.3,3405.5,2.93641]
[1721115324396,0.587147,3406.2,3405.6,3.0]
[1721115324591,0.587147,3406.2,3405.6,5.93633]
[1721115324810,2.3834,3406.9,3405.7,2.93624]
[1721115324811,2.93548,3406.6,3405.7,2.93624]
[1721115325120,2.93531,3406.8,3405.7,2.93624]
[1721115325121,2.93556,3406.5,3405.7,2.93624]
[1721115326049,6.273377,3406.7,3405.9,2.93603]
[1721115326405,9.208777,3406.7,3405.9,2.93603]
[1721115326955,9.208777,3406.7,3405.6,5.93627]
[1721115326956,2.93566,3406.4,3405.6,5.93627]
[1721115327266,0.587115,3406.3,3405.7,2.93624]
[1721115327444,0.587115,3406.3,3405.6,3.0]
[1721115327927,0.587115,3406.3,3404.8,3.05]
[1721115327928,2.93598,3406.1,3404.8,3.05]
[1721115328145,6.273377,3406.2,3405.3,2.93659]
[1721115328453,6.273377,3406.2,3405.6,2.93631]
[1721115329103,6.273377,3406.2,3405.7,2.93622]
[1721115329309,0.587115,3406.3,3405.7,2.93622]
[1721115330329,0.587115,3406.3,3405.6,2.93633]
[1721115330853,0.587115,3406.3,3405.4,5.9365]
[1721115330854,2.93601,3406.0,3405.4,3.0]
[1721115331009,0.587183,3405.9,3405.3,3.0]
[1721115331217,3.523273,3405.9,3405.0,2.93684]
[1721115331530,3.523273,3405.9,3404.6,2.3012]
[1721115331531,3.523273,3405.9,3405.1,2.93674]
[1721115333038,3.523273,3405.9,3404.9,2.93693]
[1721115333240,2.93631,3405.7,3405.0,3.0]
[1721115333469,2.93643,3405.5,3404.7,3.0]
[1721115333644,2.93643,3405.5,3404.7,5.93707]
[1721115333849,0.6459583,3405.6,3404.8,2.93701]
[1721115334059,3.523273,3405.9,3404.9,3.0]
[1721115334355,3.523323,3405.9,3405.1,2.93676]
[1721115334957,2.93643,3405.5,3404.9,3.0]
[1721115335459,2.93643,3405.5,3404.6,3.0]
[1721115335763,2.93643,3405.5,3404.7,2.9371]
[1721115335916,5.21801,3405.4,3404.3,2.93742]
[1721115336261,2.93712,3404.7,3403.7,2.93795]
[1721115336576,2.93765,3404.1,3403.0,2.93857]
[1721115336715,3.231485,3404.0,3403.0,2.93857]
[1721115337168,2.93783,3403.9,3403.0,2.93857]
[1721115337315,6.273377,3404.2,3403.1,2.93842]
[1721115337514,6.273377,3404.2,3402.8,3.05]
[1721115337765,6.273377,3404.2,3403.6,2.93799]
[1721115337916,6.273377,3404.2,3403.7,0.293799]
[1721115338120,12.3,3404.5,3403.8,2.93787]
[1721115338547,12.3,3404.5,3403.7,2.93796]
[1721115338862,12.3,3404.5,3403.7,2.9379]
[1721115339068,12.3,3404.5,3404.0,2.93771]
[1721115340167,6.273377,3404.6,3404.1,2.9376]
[1721115340332,6.273377,3404.6,3403.9,2.93778]
[1721115340668,6.273377,3404.6,3404.1,2.93761]
[1721115340995,6.273377,3404.6,3404.2,2.93754]
[1721115341391,6.273377,3404.6,3404.3,2.93743]
[1721115341687,6.273377,3404.6,3404.5,2.93728]
[1721115341972,6.273377,3404.6,3404.4,3.0]
[1721115341973,18.573377,3405.2,3404.4,3.0]
[1721115342183,21.510107,3405.2,3404.4,3.0]
[1721115342340,21.510107,3405.2,3404.1,3.0]
[1721115342545,21.510107,3405.2,3404.3,2.93745]
[1721115342546,23.9547777,3405.2,3404.3,2.93745]
[1721115342737,23.9547777,3405.2,3404.4,3.0]
[1721115343495,18.573377,3405.2,3404.5,2.93727]
[1721115343770,18.573377,3405.2,3404.6,2.93719]
[1721115343955,18.573377,3405.2,3404.4,3.0]
[1721115344264,18.573377,3405.2,3404.7,2.93704]
[1721115344733,18.573377,3405.2,3404.8,2.93702]
[1721115345231,6.273377,3405.6,3404.8,0.58743]
[1721115345433,6.273377,3405.6,3405.1,2.93673]
[1721115347040,6.273377,3405.6,3404.9,2.9369]
[1721115347286,2.93652,3405.4,3404.6,3.0]
[1721115347601,0.9209897,3405.3,3404.6,2.93718]
[1721115347892,2.3532,3405.5,3404.7,5.9371]
[1721115348096,6.273377,3405.6,3404.9,2.93693]
[1721115348404,6.273377,3405.6,3405.0,2.99556233]
[1721115348607,6.273377,3405.6,3405.3,2.93652]
[1721115348757,6.273377,3405.6,3405.5,2.93642]
[1721115349093,6.273377,3406.2,3405.5,3.0]
[1721115349308,6.273377,3406.2,3405.5,5.93636]
[1721115349605,7.40314906,3406.2,3405.4,2.9365]
[1721115349771,7.40314906,3406.2,3405.5,3.0]
[1721115350395,7.40314906,3406.2,3405.3,5.93658]
[1721115350396,2.93591,3406.1,3405.3,5.93658]
[1721115350576,7.40314906,3406.2,3405.3,2.93658]
[1721115350776,6.273377,3406.2,3405.5,2.9364]
[1721115351165,6.273377,3406.2,3405.8,2.9361]
[1721115352214,9.208867,3406.6,3405.6,2.93632]
[1721115352355,9.208867,3406.6,3405.7,2.93621]
[1721115352876,9.208867,3406.6,3405.8,2.93614]
[1721115353091,10.71710725,3406.6,3405.8,2.93614]
[1721115353293,7.78161725,3406.6,3405.8,2.93614]
[1721115353475,10.71708725,3406.6,3405.6,2.93633]
[1721115353663,10.71708725,3406.6,3405.7,2.93625]
[1721115353866,10.71708725,3406.6,3405.8,2.93616]
[1721115354062,2.93566,3406.4,3405.5,2.93641]
[1721115354287,2.93566,3406.4,3405.6,2.93633]
[1721115354694,1.36553227,3406.5,3405.6,2.93633]
[1721115354918,10.71708725,3406.6,3405.7,2.93617]
[1721115355409,6.273377,3406.6,3405.7,2.93617]
[1721115355568,6.273377,3406.6,3406.0,2.93592]
[1721115356577,0.60926647,3406.7,3406.0,2.93592]
[1721115356788,0.60926647,3406.7,3406.2,2.93581]
[1721115356993,0.60926647,3406.8,3406.2,2.93581]
[1721115357486,6.88264347,3406.9,3406.3,2.93573]
[1721115357685,0.60926647,3406.9,3406.3,2.93573]
[1721115359096,0.60926647,3407.0,3406.3,2.93573]
[1721115359300,0.60926647,3406.9,3406.3,2.93573]
[1721115359488,0.60926647,3407.1,3406.4,0.293573]
[1721115359688,6.88264347,3407.2,3406.8,2.9353]
[1721115359889,6.273377,3407.2,3406.8,2.9353]
[1721115360202,6.273377,3407.2,3406.6,2.93541]
[1721115360361,0.68826435,3407.1,3406.4,2.93563]
[1721115360568,0.68826435,3407.1,3406.5,3.0]
[1721115360812,1.29906835,3407.1,3406.5,5.93553]
[1721115361115,6.273377,3407.2,3406.6,2.93547]
[1721115361314,6.88422802,3407.2,3406.5,5.93554]
[1721115361515,6.273377,3407.2,3406.6,2.93546]
[1721115361873,6.273377,3407.2,3406.7,2.93538]
[1721115362279,6.273377,3407.2,3406.8,2.93529]
[1721115362628,6.273377,3407.2,3406.7,2.93538]
[1721115362629,18.573377,3407.6,3407.2,2.9349]
[1721115362795,18.573377,3407.6,3406.6,0.88711]
[1721115362796,0.61085102,3407.4,3405.8,2.3045]
[1721115363006,2.93514,3407.0,3405.8,2.93612]
[1721115363306,2.93514,3407.0,3405.9,3.0]
[1721115363307,3.54616102,3406.8,3405.9,3.0]
[1721115363520,0.91627653,3407.0,3404.9,5.3545]
[1721115363521,2.93573,3406.3,3404.9,5.3545]
[1721115363740,9.209207,3406.2,3405.3,2.93659]
[1721115364080,9.209207,3406.2,3404.9,5.3545]
[1721115364081,0.61085102,3406.1,3405.1,2.93677]
[1721115364279,2.93599,3406.0,3405.1,2.93677]
[1721115364586,2.93599,3406.0,3405.2,2.93667]
[1721115364587,3.54684102,3406.0,3405.2,2.93667]
[1721115364782,0.61085102,3406.1,3405.2,2.93667]
[1721115365104,0.61085102,3406.1,3404.9,5.24143]
[1721115365105,0.61009345,3406.6,3406.1,5.2404]
[1721115365285,0.61009345,3407.7,3407.2,2.93489]
[1721115365490,0.61009345,3407.7,3406.1,8.3424]
[1721115365491,3.54442345,3408.0,3406.8,2.93529]
[1721115365683,2.93451,3407.8,3406.9,2.93516]
[1721115365919,2.93451,3407.8,3407.2,2.93492]
[1721115365920,0.61009345,3407.8,3407.2,2.93492]
[1721115366134,0.61009345,3407.9,3407.2,2.93492]
[1721115366421,0.61009345,3408.1,3407.2,2.93492]
[1721115366632,0.61009345,3408.1,3407.5,2.93468]
[1721115366633,0.39982148,3408.1,3407.5,2.93468]
[1721115367134,3.33401148,3408.1,3407.3,2.93486]
[1721115367431,0.39982148,3408.1,3407.4,2.93475]
[1721115368699,3.33401148,3408.1,3407.2,2.93491]
[1721115368895,3.94410493,3408.1,3407.2,2.93491]
[1721115369107,2.93444,3407.8,3407.0,2.93511]
[1721115369317,0.72215451,3408.0,3407.1,2.93496]
[1721115369515,0.39982148,3408.1,3407.3,2.93479]
[1721115369835,2.97239345,3408.3,3407.6,2.93461]
[1721115369836,0.61009345,3408.3,3407.6,2.93461]
[1721115369982,0.61009345,3408.5,3407.6,2.93461]
[1721115370178,6.54727276,3408.7,3407.6,2.93461]
[1721115370383,8.87086931,3408.7,3407.8,2.93443]
[1721115370821,2.93376,3408.6,3407.8,2.93443]
[1721115371232,1.47998328,3408.6,3407.8,2.93443]
[1721115371412,5.93717931,3408.7,3408.1,2.93418]
[1721115371615,5.93717931,3408.7,3408.3,2.93394]
[1721115371814,2.3853,3408.9,3407.9,2.93428]
[1721115372014,2.3853,3408.9,3408.5,2.93382]
[1721115372273,5.93717931,3409.1,3408.6,2.93368]
[1721115372534,5.93717931,3409.1,3408.9,2.93347]
[1721115373751,0.1198786,3409.2,3408.7,4.054]
[1721115374342,0.1198786,3409.2,3409.1,5.86664]